Workbook

Sheet 지방도집계표
A1: 도로교통량 조사 결과 집계표(지방도)
A2: 노선별 | C2: 연장 km | D2: 시간 | E2: 2013 조사결과 | R2: 2012 조사결과 | S2: 증감 | T2: 증감율
E3: 계 | F3: 1종 (승용) | G3: 2종 (버스) | H3: 3종 (소형트럭) | I3: 4종 (소형트럭) | J3: 5종 (중형트럭) | K3: 6종 (중형트럭) | L3: 7종 (중형트럭) | M3: 8종 (대형트럭) | N3: 9종 (대형트럭) | O3: 10종 (대형트럭) | P3: 11종 (대형트럭) | Q3: 12종 (대형트럭)
A4: 합계 | C4: =SUM(C7:C21) -> 41.6 | D4: 합계 | E4: =SUM(E5:E6) -> 17,755 | F4: =SUM(F5:F6) -> 11,934 | G4: 796 | H4: 3,857 | I4: 289 | J4: 261 | K4: 515 | L4: 101 | M4: 0 | N4: 0 | O4: 2 | P4: 0 | Q4: 0 | R4: =SUM(R5:R6) -> 15,242 | S4: =E4-R4 -> 2,513 | T4: =S4/R4 -> 16%
D5: 12 | E5: =SUM(E8,E11,E14,E17,E20) -> 14,237 | F5: =SUM(F8,F11,F14,F17,F20) -> 9,244 | G5: 586 | H5: 3,259 | I5: 279 | J5: 254 | K5: 512 | L5: 101 | M5: 0 | N5: 0 | O5: 2 | P5: 0 | Q5: 0 | R5: 11,933 | S5: =E5-R5 -> 2,304 | T5: =S5/R5 -> 19%
D6: 24 | E6: =SUM(E9,E12,E15,E18,E21) -> 3,518 | F6: =SUM(F9,F12,F15,F18,F21) -> 2,690 | G6: 210 | H6: 598 | I6: 10 | J6: 7 | K6: 3 | L6: 0 | M6: 0 | N6: 0 | O6: 0 | P6: 0 | Q6: 0 | R6: 3,309 | S6: 209 | T6: 6%
A7: 22-01 (화양 용주) | C7: 8.9 | D7: 소계 | E7: =SUM(E8:E9) -> 5,539 | F7: =SUM(F8:F9) -> 3,390 | G7: 240 | H7: 1,169 | I7: 151 | J7: 108 | K7: 428 | L7: 53 | M7: 0 | N7: 0 | O7: 0 | P7: 0 | Q7: 0 | R7: =SUM(R8:R9) -> 4,696 | S7: 843 | T7: 18%
D8: 12 | E8: =SUM(F8:Q8) -> 4,544 | F8: 2,676 | G8: 168 | H8: 975 | I8: 142 | J8: 105 | K8: 425 | L8: 53 | M8: 0 | N8: 0 | O8: 0 | P8: 0 | Q8: 0 | R8: 3,823 | S8: 721 | T8: 19%
D9: 24 | E9: =SUM(F9:Q9) -> 995 | F9: 714 | G9: 72 | H9: 194 | I9: 9 | J9: 3 | K9: 3 | L9: 0 | M9: 0 | N9: 0 | O9: 0 | P9: 0 | Q9: 0 | R9: 873 | S9: 122 | T9: 14%
A10: 22-02 (소라 덕양) | C10: 12.1 | D10: 소계 | E10: =SUM(E11:E12) -> 8,506 | F10: =SUM(F11:F12) -> 6,310 | G10: 316 | H10: 1,550 | I10: 117 | J10: 93 | K10: 72 | L10: 48 | M10: 0 | N10: 0 | O10: 0 | P10: 0 | Q10: 0 | R10: =SUM(R11:R12) -> 7,507 | S10: 999 | T10: 13%
D11: 12 | E11: =SUM(F11:Q11) -> 6,709 | F11: 4,794 | G11: 245 | H11: 1,345 | I11: 116 | J11: 89 | K11: 72 | L11: 48 | M11: 0 | N11: 0 | O11: 0 | P11: 0 | Q11: 0 | R11: 5,632 | S11: 1,077 | T11: 19%
D12: 24 | E12: =SUM(F12:Q12) -> 1,797 | F12: 1,516 | G12: 71 | H12: 205 | I12: 1 | J12: 4 | K12: 0 | L12: - | M12: 0 | N12: 0 | O12: - | P12: 0 | Q12: 0 | R12: 1,875 | S12: -78 | T12: -4%
A13: 22-03 (화양 서촌) | C13: 7.4 | D13: 소계 | E13: =SUM(E14:E15) -> 2,438 | F13: =SUM(F14:F15) -> 1,545 | G13: 93 | H13: 702 | I13: 21 | J13: 60 | K13: 15 | L13: 0 | M13: 0 | N13: 0 | O13: 2 | P13: 0 | Q13: 0 | R13: 2,023 | S13: 415 | T13: 21%
D14: 12 | E14: =SUM(F14:Q14) -> 1,977 | F14: 1,235 | G14: 61 | H14: 583 | I14: 21 | J14: 60 | K14: 15 | L14: 0 | M14: 0 | N14: 0 | O14: 2 | P14: 0 | Q14: 0 | R14: 1,668 | S14: 309 | T14: 19%
D15: 24 | E15: =SUM(F15:Q15) -> 461 | F15: 310 | G15: 32 | H15: 119 | I15: 0 | J15: 0 | K15: 0 | L15: 0 | M15: 0 | N15: 0 | O15: 0 | P15: 0 | Q15: 0 | R15: 355 | S15: 106 | T15: 30%
A16: 863-01 (화양 화동) | C16: 7.7 | D16: 소계 | E16: =SUM(E17:E18) -> 716 | F16: =SUM(F17:F18) -> 391 | G16: 85 | H16: 240 | I16: 0 | J16: 0 | K16: 0 | L16: 0 | M16: 0 | N16: 0 | O16: 0 | P16: 0 | Q16: 0 | R16: =SUM(R17:R18) -> 578 | S16: 138 | T16: 24%
D17: 12 | E17: =SUM(F17:Q17) -> 568 | F17: 309 | G17: 65 | H17: 194 | I17: 0 | J17: 0 | K17: 0 | L17: 0 | M17: 0 | N17: 0 | O17: 0 | P17: 0 | Q17: 0 | R17: 467 | S17: 101 | T17: 22%
D18: 24 | E18: =SUM(F18:Q18) -> 148 | F18: 82 | G18: 20 | H18: 46 | I18: 0 | J18: 0 | K18: 0 | L18: 0 | M18: 0 | N18: 0 | O18: 0 | P18: 0 | Q18: 0 | R18: 111 | S18: 37 | T18: 33%
A19: 863-04 (화양 옥적) | C19: 5.5 | D19: 소계 | E19: =SUM(E20:E21) -> 556 | F19: =SUM(F20:F21) -> 298 | G19: 62 | H19: 196 | I19: 0 | J19: 0 | K19: 0 | L19: 0 | M19: 0 | N19: 0 | O19: 0 | P19: 0 | Q19: 0 | R19: =SUM(R20:R21) -> 438 | S19: 118 | T19: 27%
D20: 12 | E20: =SUM(F20:Q20) -> 439 | F20: 230 | G20: 47 | H20: 162 | I20: 0 | J20: 0 | K20: 0 | L20: 0 | M20: 0 | N20: 0 | O20: 0 | P20: 0 | Q20: 0 | R20: 343 | S20: 96 | T20: 28%
D21: 24 | E21: =SUM(F21:Q21) -> 117 | F21: 68 | G21: 15 | H21: 34 | I21: 0 | J21: 0 | K21: 0 | L21: 0 | M21: 0 | N21: 0 | O21: 0 | P21: 0 | Q21: 0 | R21: 95 | S21: 22 | T21: 23%

Sheet 군도집계표
B1: 도로교통량조사 결과 집계표(군도)
B2: 노선별 | D2: 연장 km | E2: 시간 | F2: 2013 조사결과 | S2: 2012 조사결과 | T2: 증감 | U2: 증감율
F3: 계 | G3: 1종 (승용) | H3: 2종 (버스) | I3: 3종 (소형 트럭) | J3: 4종 (소형) | K3: 5종 (중형) | L3: 6종 (중형) | M3: 7종 (중형) | N3: 8종 (대형 트럭) | O3: 9종 (대형) | P3: 10종 (대형) | Q3: 11종 (대형) | R3: 12종 (대형)
B4: 합 계 | D4: =SUM(D7:D60) -> 135.7 | E4: 합계 | F4: =SUM(F5:F6) -> 29,343 | G4: =SUM(G5:G6) -> 19,076 | H4: 1,281 | I4: 6,684 | J4: 668 | K4: 676 | L4: 773 | M4: 39 | N4: 44 | O4: 32 | P4: 55 | Q4: 11 | R4: 4 | S4: =SUM(S5:S6) -> 25,736 | T4: =F4-S4 -> 3607 | U4: =T4/S4 -> 14%
E5: 12 | F5: =SUM(F8,F11,F14,F17,F20,F23,F26,F29,F32,F35,F38,F41,F44,F47,F53,F56,F59) -> 23,589 | G5: =SUM(G8,G11,G14,G17,G20,G23,G26,G29,G32,G35,G38,G41,G44,G47,G53,G56,G59) -> 15,030 | H5: 999 | I5: 5,398 | J5: 615 | K5: 610 | L5: 768 | M5: 39 | N5: 44 | O5: 22 | P5: 49 | Q5: 11 | R5: 4 | S5: =SUM(S8,S11,S14,S17,S20,S23,S26,S29,S32,S35,S38,S44,S47,S50,S53,S56,S59) -> 19,851 | T5: =F5-S5 -> 3738 | U5: =T5/S5 -> 19%
E6: 24 | F6: =SUM(F9,F12,F15,F18,F21,F24,F27,F30,F33,F36,F39,F42,F45,F48,F51,F54,F57,F60) -> 5,754 | G6: =SUM(G9,G12,G15,G18,G21,G24,G27,G30,G33,G36,G39,G42,G45,G48,G51,G54,G57,G60) -> 4,046 | H6: 282 | I6: 1,286 | J6: 53 | K6: 66 | L6: 5 | M6: 0 | N6: 0 | O6: 10 | P6: 6 | Q6: 0 | R6: 0 | S6: =SUM(S9,S12,S15,S18,S21,S24,S27,S30,S33,S36,S39,S42,S45,S48,S51,S54,S57,S60) -> 5,885 | T6: -131 | U6: -2%
B7: 1호 | C7: 36-02-01 (임포-죽포) | D7: 8.9 | E7: 소계 | F7: =SUM(F8:F9) -> 2,257 | G7: =SUM(G8:G9) -> 1,361 | H7: 217 | I7: 556 | J7: 57 | K7: 61 | L7: 3 | M7: 2 | N7: 0 | O7: 0 | P7: 0 | Q7: 0 | R7: 0 | S7: =SUM(S8:S9) -> 2,044 | T7: 213 | U7: 10%
E8: 12 | F8: 1,877 | G8: 1,140 | H8: 194 | I8: 420 | J8: 57 | K8: 61 | L8: 3 | M8: 2 | N8: 0 | O8: 0 | P8: 0 | Q8: 0 | R8: 0 | S8: 1,685 | T8: 192 | U8: 11%
E9: 24 | F9: =SUM(G9:R9) -> 380 | G9: 221 | H9: 23 | I9: 136 | J9: 0 | K9: 0 | L9: 0 | M9: 0 | N9: 0 | O9: 0 | P9: 0 | Q9: 0 | R9: 0 | S9: 359 | T9: 21 | U9: 6%
B10: 2호 | C10: 36-02-02 (군내-대율) | D10: 12.1 | E10: 소계 | F10: =SUM(F11:F12) -> 1,700 | G10: =SUM(G11:G12) -> 1,138 | H10: 69 | I10: 404 | J10: 44 | K10: 24 | L10: 21 | M10: 0 | N10: 0 | O10: 0 | P10: 0 | Q10: 0 | R10: 0 | S10: =SUM(S11:S12) -> 1,639 | T10: 61 | U10: 4%
E11: 12 | F11: =SUM(G11:R11) -> 1,345 | G11: 888 | H11: 54 | I11: 318 | J11: 40 | K11: 24 | L11: 21 | M11: 0 | N11: 0 | O11: 0 | P11: 0 | Q11: 0 | R11: 0 | S11: 1,322 | T11: 23 | U11: 2%
E12: 24 | F12: =SUM(G12:R12) -> 355 | G12: 250 | H12: 15 | I12: 86 | J12: 4 | K12: 0 | L12: 0 | M12: 0 | N12: 0 | O12: 0 | P12: 0 | Q12: 0 | R12: 0 | S12: 317 | T12: 38 | U12: 12%
B13: 4호 | C13: 36-02-03 (진두-하동) | D13: 7.4 | E13: 소계 | F13: =SUM(F14:F15) -> 1,029 | G13: =SUM(G14:G15) -> 719 | H13: 38 | I13: 257 | J13: 11 | K13: 3 | L13: 1 | M13: 0 | N13: 0 | O13: 0 | P13: 0 | Q13: 0 | R13: 0 | S13: =SUM(S14:S15) -> 931 | T13: 98 | U13: 11%
E14: 12 | F14: =SUM(G14:R14) -> 783 | G14: 533 | H14: 29 | I14: 211 | J14: 8 | K14: 1 | L14: 1 | M14: 0 | N14: 0 | O14: 0 | P14: 0 | Q14: 0 | R14: 0 | S14: 669 | T14: 114 | U14: 17%
E15: 24 | F15: =SUM(G15:R15) -> 246 | G15: 186 | H15: 9 | I15: 46 | J15: 3 | K15: 2 | L15: 0 | M15: 0 | N15: 0 | O15: 0 | P15: 0 | Q15: 0 | R15: 0 | S15: 262 | T15: -16 | U15: -6%
B16: 5호 | C16: 36-02-04 (송시-도실) | D16: 7.7 | E16: 소계 | F16: =SUM(F17:F18) -> 3,868 | G16: =SUM(G17:G18) -> 2,608 | H16: 106 | I16: 922 | J16: 88 | K16: 12 | L16: 98 | M16: 4 | N16: 29 | O16: 0 | P16: 1 | Q16: 0 | R16: 0 | S16: =SUM(S17:S18) -> 3,459 | T16: 409 | U16: 12%
E17: 12 | F17: =SUM(G17:R17) -> 3,227 | G17: 2,142 | H17: 91 | I17: 772 | J17: 79 | K17: 11 | L17: 98 | M17: 4 | N17: 29 | O17: 0 | P17: 1 | Q17: 0 | R17: 0 | S17: 2,726 | T17: 501 | U17: 18%
E18: 24 | F18: =SUM(G18:R18) -> 641 | G18: 466 | H18: 15 | I18: 150 | J18: 9 | K18: 1 | L18: 0 | M18: 0 | N18: 0 | O18: 0 | P18: 0 | Q18: 0 | R18: 0 | S18: 733 | T18: -92 | U18: -13%
B19: 7호 | C19: 36-02-05 (둔전-굴전) | D19: 5.5 | E19: 소계 | F19: =SUM(F20:F21) -> 930 | G19: =SUM(G20:G21) -> 648 | H19: 29 | I19: 227 | J19: 16 | K19: 10 | L19: 0 | M19: 0 | N19: 0 | O19: 0 | P19: 0 | Q19: 0 | R19: 0 | S19: =SUM(S20:S21) -> 903 | T19: 27 | U19: 3%
E20: 12 | F20: =SUM(G20:R20) -> 738 | G20: 506 | H20: 23 | I20: 184 | J20: 15 | K20: 10 | L20: 0 | M20: 0 | N20: 0 | O20: 0 | P20: 0 | Q20: 0 | R20: 0 | S20: 669 | T20: 69 | U20: 10%
E21: 24 | F21: =SUM(G21:R21) -> 192 | G21: 142 | H21: 6 | I21: 43 | J21: 1 | K21: 0 | L21: 0 | M21: 0 | N21: 0 | O21: 0 | P21: 0 | Q21: 0 | R21: 0 | S21: 234 | T21: -42 | U21: -18%
B22: 8호 | C22: 36-02-06 (풍류-내기) | D22: 3.3 | E22: 소계 | F22: =SUM(F23:F24) -> 1,816 | G22: =SUM(G23:G24) -> 1,167 | H22: 30 | I22: 507 | J22: 46 | K22: 59 | L22: 3 | M22: 1 | N22: 3 | O22: 0 | P22: 0 | Q22: 0 | R22: 0 | S22: =SUM(S23:S24) -> 1,687 | T22: 129 | U22: 8%
E23: 12 | F23: =SUM(G23:R23) -> 1,606 | G23: 1,021 | H23: 25 | I23: 450 | J23: 46 | K23: 57 | L23: 3 | M23: 1 | N23: 3 | O23: 0 | P23: 0 | Q23: 0 | R23: 0 | S23: 1,442 | T23: 164 | U23: 11%
E24: 24 | F24: =SUM(G24:R24) -> 210 | G24: 146 | H24: 5 | I24: 57 | J24: 0 | K24: 2 | L24: 0 | M24: 0 | N24: 0 | O24: 0 | P24: 0 | Q24: 0 | R24: 0 | S24: 245 | T24: -35 | U24: -14%
B25: 10호 | C25: 36-02-07 (달천-대포) | D25: 8.8 | E25: 소계 | F25: =SUM(F26:F27) -> 1,266 | G25: =SUM(G26:G27) -> 900 | H25: 30 | I25: 220 | J25: 39 | K25: 49 | L25: 22 | M25: 6 | N25: 0 | O25: 0 | P25: 0 | Q25: 0 | R25: 0 | S25: =SUM(S26:S27) -> 1,188 | T25: 78 | U25: 7%
E26: 12 | F26: =SUM(G26:R26) -> 946 | G26: 610 | H26: 18 | I26: 204 | J26: 39 | K26: 47 | L26: 22 | M26: 6 | N26: 0 | O26: 0 | P26: 0 | Q26: 0 | R26: 0 | S26: 895 | T26: 51 | U26: 6%
E27: 24 | F27: =SUM(G27:R27) -> 320 | G27: 290 | H27: 12 | I27: 16 | J27: 0 | K27: 2 | L27: 0 | M27: 0 | N27: 0 | O27: 0 | P27: 0 | Q27: 0 | R27: 0 | S27: 293 | T27: 27 | U27: 9%
B28: 11호 | C28: 36-02-08 (덕양-연화) | D28: 10.5 | E28: 소계 | F28: =SUM(F29:F30) -> 1,529 | G28: =SUM(G29:G30) -> 750 | H28: 29 | I28: 167 | J28: 14 | K28: 37 | L28: 527 | M28: 5 | N28: 0 | O28: 0 | P28: 0 | Q28: 0 | R28: 0 | S28: =SUM(S29:S30) -> 1,544 | T28: -15 | U28: -1%
E29: 12 | F29: =SUM(G29:R29) -> 1,437 | G29: 669 | H29: 24 | I29: 161 | J29: 14 | K29: 37 | L29: 527 | M29: 5 | N29: 0 | O29: 0 | P29: 0 | Q29: 0 | R29: 0 | S29: 1,452 | T29: -15 | U29: -1%
E30: 24 | F30: =SUM(G30:R30) -> 92 | G30: 81 | H30: 5 | I30: 6 | J30: 0 | K30: 0 | L30: 0 | M30: 0 | N30: 0 | O30: 0 | P30: 0 | Q30: 0 | R30: 0 | S30: 92 | T30: 0 | U30: 0%
B31: 12호 | C31: 36-02-09 (달천-신흥) | D31: 3.6 | E31: 소계 | F31: =SUM(F32:F33) -> 659 | G31: =SUM(G32:G33) -> 472 | H31: 28 | I31: 150 | J31: 7 | K31: 2 | L31: 0 | M31: 0 | N31: 0 | O31: 0 | P31: 0 | Q31: 0 | R31: 0 | S31: =SUM(S32:S33) -> 600 | T31: 59 | U31: 10%
E32: 12 | F32: =SUM(G32:R32) -> 561 | G32: 396 | H32: 21 | I32: 136 | J32: 6 | K32: 2 | L32: 0 | M32: 0 | N32: 0 | O32: 0 | P32: 0 | Q32: 0 | R32: 0 | S32: 528 | T32: 33 | U32: 6%
E33: 24 | F33: =SUM(G33:R33) -> 98 | G33: 76 | H33: 7 | I33: 14 | J33: 1 | K33: 0 | L33: 0 | M33: 0 | N33: 0 | O33: 0 | P33: 0 | Q33: 0 | R33: 0 | S33: 72 | T33: 26 | U33: 36%
B34: 14호 | C34: 36-02-10 (신풍-애양) | D34: 2.9 | E34: 소계 | F34: =SUM(F35:F36) -> 1,866 | G34: =SUM(G35:G36) -> 1,446 | H34: 105 | I34: 268 | J34: 26 | K34: 17 | L34: 3 | M34: 1 | N34: 0 | O34: 0 | P34: 0 | Q34: 0 | R34: 0 | S34: =SUM(S35:S36) -> 1,988 | T34: -122 | U34: -6%
E35: 12 | F35: =SUM(G35:R35) -> 1,476 | G35: 1,136 | H35: 65 | I35: 229 | J35: 25 | K35: 17 | L35: 3 | M35: 1 | N35: 0 | O35: 0 | P35: 0 | Q35: 0 | R35: 0 | S35: 1,528 | T35: -52 | U35: -3%
E36: 24 | F36: =SUM(G36:R36) -> 390 | G36: 310 | H36: 40 | I36: 39 | J36: 1 | K36: 0 | L36: 0 | M36: 0 | N36: 0 | O36: 0 | P36: 0 | Q36: 0 | R36: 0 | S36: 460 | T36: -70 | U36: -15%
B37: 15호 | C37: 36-02-11 (조화-연화) | D37: 1 | E37: 소계 | F37: =SUM(F38:F39) -> 2,335 | G37: =SUM(G38:G39) -> 1,482 | H37: 158 | I37: 590 | J37: 73 | K37: 26 | L37: 4 | M37: 2 | N37: 0 | O37: 0 | P37: 0 | Q37: 0 | R37: 0 | S37: =SUM(S38:S39) -> 2,504 | T37: -169 | U37: -7%
E38: 12 | F38: =SUM(G38:R38) -> 1,720 | G38: 1,097 | H38: 111 | I38: 430 | J38: 58 | K38: 19 | L38: 3 | M38: 2 | N38: 0 | O38: 0 | P38: 0 | Q38: 0 | R38: 0 | S38: 1,792 | T38: -72 | U38: -4%
E39: 24 | F39: =SUM(G39:R39) -> 615 | G39: 385 | H39: 47 | I39: 160 | J39: 15 | K39: 7 | L39: 1 | M39: 0 | N39: 0 | O39: 0 | P39: 0 | Q39: 0 | R39: 0 | S39: 712 | T39: -97 | U39: -14%
B40: 16호 | C40: 36-02-12 (상봉-여흥) | D40: 8.1 | E40: 소계 | F40: =SUM(F41:F42) -> 3,124 | G40: =SUM(G41:G42) -> 1,836 | H40: 210 | I40: 598 | J40: 188 | K40: 100 | L40: 75 | M40: 18 | N40: 12 | O40: 18 | P40: 54 | Q40: 11 | R40: 4 | S40: =SUM(S41:S42) -> 3,782 | T40: -658 | U40: -17%
E41: 12 | F41: =SUM(G41:R41) -> 2,441 | G41: 1,368 | H41: 176 | I41: 457 | J41: 175 | K41: 87 | L41: 73 | M41: 18 | N41: 12 | O41: 12 | P41: 48 | Q41: 11 | R41: 4 | S41: 2,961 | T41: -520 | U41: -18%
E42: 24 | F42: =SUM(G42:R42) -> 683 | G42: 468 | H42: 34 | I42: 141 | J42: 13 | K42: 13 | L42: 2 | M42: 0 | N42: 0 | O42: 6 | P42: 6 | Q42: 0 | R42: 0 | S42: 821 | T42: -138 | U42: -17%
B43: 17호 | C43: 36-02-13 (나진-창무) | D43: 15.3 | E43: 소계 | F43: =SUM(F44:F45) -> 655 | G43: =SUM(G44:G45) -> 326 | H43: 56 | I43: 273 | J43: 0 | K43: 0 | L43: 0 | M43: 0 | N43: 0 | O43: 0 | P43: 0 | Q43: 0 | R43: 0 | S43: =SUM(S44:S45) -> 559 | T43: 96 | U43: 17%
E44: 12 | F44: =SUM(G44:R44) -> 535 | G44: 270 | H44: 43 | I44: 222 | J44: 0 | K44: 0 | L44: 0 | M44: 0 | N44: 0 | O44: 0 | P44: 0 | Q44: 0 | R44: 0 | S44: 454 | T44: 81 | U44: 18%
E45: 24 | F45: =SUM(G45:R45) -> 120 | G45: 56 | H45: 13 | I45: 51 | J45: 0 | K45: 0 | L45: 0 | M45: 0 | N45: 0 | O45: 0 | P45: 0 | Q45: 0 | R45: 0 | S45: 105 | T45: 15 | U45: 14%
B46: 18호 | C46: 36-02-14 (용주-소호) | D46: 2 | E46: 소계 | F46: =SUM(F47:F48) -> 4,011 | G46: =SUM(G47:G48) -> 2,990 | H46: 106 | I46: 857 | J46: 8 | K46: 34 | L46: 16 | M46: 0 | N46: 0 | O46: 0 | P46: 0 | Q46: 0 | R46: 0 | S46: =SUM(S47:S48) -> 3,390 | T46: 621 | U46: 18%
E47: 12 | F47: =SUM(G47:R47) -> 3,156 | G47: 2,315 | H47: 79 | I47: 706 | J47: 8 | K47: 34 | L47: 14 | M47: 0 | N47: 0 | O47: 0 | P47: 0 | Q47: 0 | R47: 0 | S47: 2,663 | T47: 493 | U47: 19%
E48: 24 | F48: =SUM(G48:R48) -> 855 | G48: 675 | H48: 27 | I48: 151 | J48: 0 | K48: 0 | L48: 2 | M48: 0 | N48: 0 | O48: 0 | P48: 0 | Q48: 0 | R48: 0 | S48: 727 | T48: 128 | U48: 18%
B49: 21호 | C49: 36-02-15 (세포-서촌) | D49: 8.8 | E49: 소계 | F49: =SUM(F50:F51) -> 562 | G49: =SUM(G50:G51) -> 277 | H49: 77 | I49: 206 | J49: 0 | K49: 2 | L49: 0 | M49: 0 | N49: 0 | O49: 0 | P49: 0 | Q49: 0 | R49: 0 | S49: =SUM(S50:S51) -> 434 | T49: 128 | U49: 29%
E50: 12 | F50: =SUM(G50:R50) -> 432 | G50: 209 | H50: 55 | I50: 166 | J50: 0 | K50: 2 | L50: 0 | M50: 0 | N50: 0 | O50: 0 | P50: 0 | Q50: 0 | R50: 0 | S50: 336 | T50: 96 | U50: 29%
E51: 24 | F51: =SUM(G51:R51) -> 130 | G51: 68 | H51: 22 | I51: 40 | J51: 0 | K51: 0 | L51: 0 | M51: 0 | N51: 0 | O51: 0 | P51: 0 | Q51: 0 | R51: 0 | S51: 98 | T51: 32 | U51: 33%
B52: 20호 | C52: 36-02-16 (우학-송고) | D52: 16.2 | E52: 소계 | F52: =SUM(F53:F54) -> 735 | G52: =SUM(G53:G54) -> 509 | H52: 48 | I52: 145 | J52: 19 | K52: 14 | L52: 0 | M52: 0 | N52: 0 | O52: 0 | P52: 0 | Q52: 0 | R52: 0 | S52: =SUM(S53:S54) -> 668 | T52: 67 | U52: 10%
E53: 12 | F53: =SUM(G53:R53) -> 617 | G53: 418 | H53: 46 | I53: 120 | J53: 19 | K53: 14 | L53: 0 | M53: 0 | N53: 0 | O53: 0 | P53: 0 | Q53: 0 | R53: 0 | S53: 603 | T53: 14 | U53: 2%
E54: 24 | F54: =SUM(G54:R54) -> 118 | G54: 91 | H54: 2 | I54: 25 | J54: 0 | K54: 0 | L54: 0 | M54: 0 | N54: 0 | O54: 0 | P54: 0 | Q54: 0 | R54: 0 | S54: 65 | T54: 53 | U54: 82%
B55: 6호 | C55: 36-02-17 (호령-신흥) | D55: 4.6 | E55: 소계 | F55: =SUM(F56:F57) -> 427 | G55: =SUM(G56:G57) -> 185 | H55: 0 | I55: 4 | J55: 0 | K55: 224 | L55: 0 | M55: 0 | N55: 0 | O55: 14 | P55: 0 | Q55: 0 | R55: 0 | S55: =SUM(S56:S57) -> 411 | T55: 16 | U55: 4%
E56: 12 | F56: =SUM(G56:R56) -> 359 | G56: 160 | H56: 0 | I56: 4 | J56: 0 | K56: 185 | L56: 0 | M56: 0 | N56: 0 | O56: 10 | P56: 0 | Q56: 0 | R56: 0 | S56: 343 | T56: 16 | U56: 5%
E57: 24 | F57: =SUM(G57:R57) -> 68 | G57: 25 | H57: 0 | I57: 0 | J57: 0 | K57: 39 | L57: 0 | M57: 0 | N57: 0 | O57: 4 | P57: 0 | Q57: 0 | R57: 0 | S57: 68 | T57: 0 | U57: 0%
B58: 22호 | C58: 36-02-18 (거문-죽촌) | D58: 9 | E58: 소계 | F58: =SUM(F59:F60) -> 1,006 | G58: =SUM(G59:G60) -> 471 | H58: 0 | I58: 499 | J58: 32 | K58: 4 | L58: 0 | M58: 0 | N58: 0 | O58: 0 | P58: 0 | Q58: 0 | R58: 0 | S58: =SUM(S59:S60) -> 966 | T58: 40 | U58: 4%
E59: 12 | F59: =SUM(G59:R59) -> 765 | G59: 361 | H59: 0 | I59: 374 | J59: 26 | K59: 4 | L59: 0 | M59: 0 | N59: 0 | O59: 0 | P59: 0 | Q59: 0 | R59: 0 | S59: 744 | T59: 21 | U59: 3%
E60: 24 | F60: =SUM(G60:R60) -> 241 | G60: 110 | H60: 0 | I60: 125 | J60: 6 | K60: 0 | L60: 0 | M60: 0 | N60: 0 | O60: 0 | P60: 0 | Q60: 0 | R60: 0 | S60: 222 | T60: 19 | U60: 9%
